bitfinex/quotes_BTCUSD_20250902
["timestamp","ask_amount","ask_price","bid_price","bid_amount"]
[1756843156810,0.7697117,110890.0,110880.0,0.004]
[1756843156966,0.9242717,110890.0,110880.0,0.004]
[1756843157403,0.90482025,110890.0,110880.0,0.004]
[1756843157763,0.92426492,110890.0,110880.0,0.004]
[1756843157984,0.76970492,110890.0,110880.0,0.004]
[1756843158402,0.81489233,110890.0,110880.0,0.00894]
[1756843159037,0.81687233,110890.0,110880.0,0.00894]
[1756843159224,1.24482025,110890.0,110880.0,0.00894]
[1756843159426,1.09026025,110890.0,110880.0,0.00894]
[1756843159594,0.66033233,110890.0,110880.0,0.00894]
[1756843159793,0.47997342,110890.0,110880.0,0.18931518]
[1756843159999,0.2722749,110890.0,110880.0,0.18931518]
[1756843160206,0.20129773,110890.0,110880.0,0.18931518]
[1756843160411,0.02093882,110890.0,110880.0,0.18931518]
[1756843161135,0.36711628,110900.0,110890.0,0.18035891]
[1756843161302,0.34869336,110910.0,110890.0,0.1869222]
[1756843161504,0.80772296,110910.0,110900.0,0.00294]
[1756843161748,0.82395573,110910.0,110900.0,0.00494]
[1756843162325,0.66939573,110910.0,110900.0,0.18528265]
[1756843162525,0.66939573,110910.0,110900.0,0.00494]
[1756843162745,0.66939573,110910.0,110900.0,0.18690544]
[1756843162746,8.461e-05,110910.0,110900.0,0.18690544]
[1756843162948,8.461e-05,110910.0,110900.0,0.18528265]
[1756843163178,0.02102343,110910.0,110900.0,0.18528265]
[1756843163344,0.20134982,110910.0,110900.0,0.18528265]
[1756843163765,0.20234982,110910.0,110900.0,0.18528265]
[1756843164166,0.02202343,110910.0,110900.0,0.18528265]
[1756843164370,0.02584102,110910.0,110900.0,0.18528265]
[1756843164625,0.20616741,110910.0,110900.0,0.18528265]
[1756843164834,0.20334982,110910.0,110900.0,0.18528265]
[1756843164987,0.20234982,110910.0,110900.0,0.18528265]
[1756843165395,0.20234982,110910.0,110900.0,0.18728265]
[1756843165775,0.20134982,110910.0,110900.0,0.18728265]
[1756843165956,0.20134982,110910.0,110900.0,0.18928265]
[1756843166359,0.20348982,110910.0,110900.0,0.00694]
[1756843166575,0.20348982,110910.0,110890.0,0.33487891]
[1756843166576,0.18034265,110900.0,110890.0,0.00294]
[1756843166785,0.18034265,110900.0,110880.0,0.18331518]
[1756843166786,0.20131193,110890.0,110880.0,0.18331518]
[1756843167009,0.20131193,110890.0,110880.0,0.18531518]
[1756843167425,0.02093882,110890.0,110880.0,0.18531518]
[1756843167634,0.20411583,110890.0,110880.0,0.18531518]
[1756843167837,0.20129773,110890.0,110880.0,0.33983518]
[1756843168041,0.20129773,110890.0,110880.0,0.34183518]
[1756843168274,0.20129773,110890.0,110880.0,0.18731518]
[1756843168478,0.20327773,110890.0,110880.0,0.15946]
[1756843168680,0.63122565,110890.0,110880.0,0.15946]
[1756843168986,0.20129773,110890.0,110880.0,0.15946]
[1756843169220,0.20129773,110890.0,110880.0,0.00494]
[1756843169406,0.63122565,110890.0,110880.0,0.002]
[1756843169633,0.20327773,110890.0,110880.0,0.002]
[1756843169838,0.20327773,110890.0,110880.0,0.00494]
[1756843170174,0.35779773,110890.0,110870.0,0.33491135]
[1756843170383,0.35779773,110890.0,110870.0,0.33785135]
[1756843170588,0.35581773,110890.0,110880.0,0.00994]
[1756843171036,0.17545882,110890.0,110880.0,0.19031518]
[1756843171261,0.02375692,110890.0,110880.0,0.18931518]
[1756843171380,0.20411583,110890.0,110880.0,0.18931518]
[1756843171602,0.20411583,110890.0,110880.0,0.6172631]
[1756843171603,0.02093882,110890.0,110880.0,0.6172631]
[1756843171804,0.02093882,110890.0,110880.0,0.34383518]
[1756843172423,0.02711496,110900.0,110890.0,0.18035891]
[1756843172628,0.02093882,110900.0,110890.0,0.1869222]
[1756843172837,0.02719812,110910.0,110900.0,0.18034265]
[1756843173052,8.461e-05,110910.0,110900.0,0.34142544]
[1756843173253,0.02102343,110910.0,110900.0,0.33980265]
[1756843173884,0.02384102,110910.0,110900.0,0.33980265]
[1756843174086,0.02102343,110910.0,110900.0,0.33980265]
[1756843174296,8.461e-05,110910.0,110900.0,0.76775057]
[1756843174727,8.461e-05,110910.0,110900.0,0.86366656]
[1756843174931,8.461e-05,110910.0,110900.0,1.23620492]
[1756843175160,8.461e-05,110910.0,110900.0,1.23420492]
[1756843175578,8.461e-05,110910.0,110900.0,1.66130782]
[1756843175832,0.0002,110950.0,110940.0,0.18027762]
[1756843175833,0.02730178,110950.0,110940.0,0.18027762]
[1756843176082,0.00066916,110950.0,110940.0,0.61316554]
[1756843176304,0.00066916,110950.0,110940.0,0.34033762]
[1756843176514,0.00066916,110950.0,110940.0,0.76828554]
[1756843176716,0.00066916,110950.0,110940.0,0.86020153]
[1756843176918,0.00066916,110950.0,110940.0,0.70508153]
[1756843177124,0.00066916,110950.0,110940.0,0.86024153]
[1756843177359,0.00066916,110950.0,110940.0,0.86320153]
[1756843177558,0.00066916,110950.0,110940.0,0.86720153]
[1756843177765,0.00066916,110950.0,110940.0,0.86420153]
[1756843177970,0.00066916,110950.0,110940.0,0.86020153]
[1756843178181,0.00166916,110950.0,110940.0,0.71108153]
[1756843178396,0.00266916,110950.0,110940.0,0.87120153]
[1756843180322,0.00266916,110950.0,110940.0,0.71608153]
[1756843180533,0.00266916,110950.0,110940.0,0.87112153]
[1756843180755,0.00266916,110950.0,110940.0,0.71608153]
[1756843180994,0.00266916,110950.0,110940.0,0.87108153]
[1756843181202,0.00266916,110950.0,110940.0,1.21108153]
[1756843182736,0.00266916,110950.0,110940.0,1.61108153]
[1756843184904,0.00266916,110950.0,110940.0,1.61096153]
[1756843185507,0.00266916,110950.0,110940.0,1.18301361]
[1756843185712,0.00266916,110950.0,110940.0,1.61096153]
[1756843186112,0.00266916,110950.0,110940.0,1.63572153]
[1756843186379,0.00266916,110950.0,110940.0,1.48084153]
[1756843186570,0.00266916,110950.0,110940.0,1.63572153]
[1756843187203,0.00266916,110950.0,110940.0,1.48084153]
[1756843187395,0.00266916,110950.0,110940.0,1.45608153]
[1756843187640,0.00266916,110950.0,110940.0,1.61092153]
[1756843188059,0.00266916,110950.0,110940.0,1.61100153]
[1756843189325,0.00266916,110950.0,110940.0,1.63809379]
[1756843190031,0.00266916,110950.0,110940.0,1.21014587]
[1756843190228,0.00266916,110950.0,110940.0,1.48317379]
[1756843190457,0.00266916,110950.0,110940.0,1.63801379]
[1756843190665,1.0002,110960.0,110950.0,0.52026137]
[1756843190863,1.0002,110960.0,110950.0,1.5346832]
[1756843190864,1.0002846,110960.0,110950.0,1.5346832]
[1756843191089,1.0002846,110960.0,110950.0,1.26442528]
[1756843191293,1.0002846,110960.0,110950.0,1.66442528]
[1756843191491,1.0002846,110960.0,110950.0,1.27690212]
[1756843191697,1.0002846,110960.0,110950.0,1.70985004]
[1756843192399,1.0002846,110960.0,110950.0,1.71385004]
[1756843192961,1.0002846,110960.0,110950.0,2.14179796]
[1756843193179,0.58847047,110960.0,110950.0,2.14179796]
[1756843193384,0.25363678,110960.0,110950.0,2.26655796]
[1756843193591,0.2227711,110960.0,110950.0,2.26655796]
[1756843193760,0.2227711,110960.0,110950.0,2.11099796]
[1756843193968,0.2227711,110960.0,110950.0,2.24179796]
[1756843194190,0.2227711,110960.0,110950.0,1.81385004]
[1756843194391,0.2227711,110960.0,110950.0,2.24179796]
[1756843194589,0.2227711,110960.0,110950.0,2.23679796]
[1756843194810,0.2227711,110960.0,110950.0,2.08123796]
[1756843195023,0.2237711,110960.0,110950.0,2.08823796]
[1756843195222,0.2237711,110960.0,110950.0,2.03823796]
[1756843195424,0.2237711,110960.0,110950.0,1.61529004]
[1756843195621,0.2237711,110960.0,110950.0,2.00738624]
[1756843195852,0.2237711,110960.0,110950.0,2.00238624]
[1756843196056,0.2237711,110960.0,110950.0,1.84682624]
[1756843196234,0.2237711,110960.0,110950.0,2.00238624]
[1756843196643,0.2247711,110960.0,110950.0,2.00938624]
[1756843197369,0.2237711,110960.0,110950.0,1.84282624]
[1756843197574,0.2237711,110960.0,110950.0,2.00234624]
[1756843197796,0.2237711,110960.0,110950.0,1.17834212]
[1756843198001,0.2227711,110960.0,110950.0,2.01843602]
[1756843198202,0.2227711,110960.0,110950.0,2.02243602]
[1756843198420,0.2237711,110960.0,110950.0,2.02843602]
[1756843198782,0.2227711,110960.0,110950.0,2.02243602]
[1756843198981,0.2227711,110960.0,110950.0,2.02843602]
[1756843199192,0.2237711,110960.0,110950.0,1.97843602]
[1756843199395,0.2237711,110960.0,110950.0,2.02843602]
[1756843199766,0.2237711,110960.0,110950.0,1.3641119]
[1756843199972,0.2237711,110960.0,110950.0,2.02859602]
[1756843201277,0.2237711,110960.0,110950.0,1.82291602]
[1756843201476,0.2257511,110960.0,110950.0,1.3109419]
[1756843201686,0.2257511,110960.0,110950.0,1.79060624]
[1756843201891,0.2257511,110960.0,110950.0,1.94845624]
[1756843202094,0.2257511,110960.0,110950.0,1.95154624]
[1756843202319,0.2237711,110960.0,110950.0,1.95154624]
[1756843202732,0.2257511,110960.0,110950.0,1.54636624]
[1756843202912,0.2257511,110960.0,110950.0,1.35231148]
[1756843203117,0.2237711,110960.0,110950.0,1.51116148]
[1756843203338,0.2237711,110960.0,110950.0,1.35540148]
[1756843203632,0.2237711,110960.0,110950.0,1.51116148]
[1756843204840,0.2257511,110960.0,110950.0,0.68569736]
[1756843205191,0.2237711,110960.0,110950.0,1.51136148]
[1756843205604,0.2237711,110960.0,110950.0,1.55288659]
[1756843206588,0.0010846,110960.0,110950.0,1.55288659]
[1756843206792,0.0030646,110960.0,110950.0,1.50614148]
[1756843206953,0.0030646,110960.0,110950.0,1.35018148]
[1756843207149,0.0030646,110960.0,110950.0,1.07426549]
[1756843207504,0.0052846,110960.0,110950.0,1.07430549]
[1756843207734,0.0030646,110960.0,110950.0,1.07430549]
[1756843208104,0.0020646,110960.0,110950.0,1.06830549]
[1756843208470,0.0020646,110960.0,110950.0,1.07330549]
[1756843209093,0.0020646,110960.0,110950.0,1.06430549]
[1756843209753,0.0020646,110960.0,110950.0,1.06830549]
[1756843209969,8.46e-05,110960.0,110950.0,1.06927549]
[1756843210412,8.46e-05,110960.0,110950.0,1.07727549]
[1756843212895,8.46e-05,110960.0,110950.0,0.92123549]
[1756843213116,0.0020646,110960.0,110950.0,0.40798137]
[1756843213322,0.0020646,110960.0,110950.0,1.07234549]
[1756843213732,0.0020646,110960.0,110950.0,1.07242549]
[1756843215141,0.0020646,110960.0,110950.0,0.91626549]
[1756843215344,0.0020646,110960.0,110950.0,1.07242549]
[1756843215540,8.46e-05,110960.0,110950.0,1.07739549]
[1756843215771,0.0020646,110960.0,110950.0,1.07739549]
[1756843216171,0.0020646,110960.0,110950.0,1.07242549]
[1756843216847,0.0020646,110960.0,110950.0,0.91626549]
[1756843217061,8.46e-05,110960.0,110950.0,1.07442549]
[1756843217279,8.46e-05,110960.0,110950.0,1.07735549]
[1756843218857,8.46e-05,110960.0,110950.0,0.92123549]
[1756843219086,8.46e-05,110960.0,110950.0,1.07739549]
[1756843219297,8.46e-05,110960.0,110950.0,1.16931148]
[1756843219897,8.46e-05,110960.0,110950.0,1.01315148]
[1756843220113,8.46e-05,110960.0,110950.0,1.16923148]
[1756843220569,8.46e-05,110960.0,110950.0,1.16927148]
[1756843222696,8.46e-05,110960.0,110950.0,1.01315148]
[1756843222930,0.0020646,110960.0,110950.0,1.16915148]
[1756843223309,0.0020646,110960.0,110950.0,1.01022148]
[1756843223486,0.0020646,110960.0,110950.0,1.56418148]
[1756843223889,0.0020646,110960.0,110950.0,0.80786137]
[1756843224269,0.0020646,110960.0,110950.0,0.40786137]
[1756843224722,0.0020646,110960.0,110950.0,0.40782137]
[1756843225312,0.0020646,110960.0,110950.0,1.07230549]
[1756843225544,0.0020646,110960.0,110950.0,0.25178137]
[1756843225752,0.0020646,110960.0,110950.0,1.07230549]
[1756843227697,0.0020646,110960.0,110950.0,1.07434549]
[1756843227923,0.18230973,110960.0,110950.0,0.91626549]
[1756843228159,0.20546855,110960.0,110950.0,0.008]
[1756843228380,0.29738454,110960.0,110950.0,0.16388]
[1756843229069,0.29738454,110960.0,110950.0,0.15588]
[1756843229264,0.29738454,110960.0,110950.0,0.15888]
[1756843229559,0.29738454,110960.0,110950.0,0.15884]
[1756843229791,0.29738454,110960.0,110950.0,0.15584]
[1756843230100,0.29738454,110960.0,110950.0,0.15884]
[1756843230782,0.29738454,110960.0,110950.0,0.16184]
[1756843230999,0.29738454,110960.0,110950.0,0.15884]
[1756843231218,0.29738454,110960.0,110950.0,0.006]
[1756843231444,0.29738454,110960.0,110950.0,0.16184]
[1756843231669,1.30186866,110960.0,110950.0,0.006]
[1756843231934,1.30186866,110960.0,110950.0,0.1618]
[1756843232197,1.30186866,110960.0,110950.0,0.1558]
[1756843232417,1.30186866,110960.0,110950.0,0.004]
[1756843232616,1.30186866,110960.0,110950.0,0.002]
[1756843232810,0.18026137,110950.0,110940.0,0.1558]
[1756843233094,0.27919394,110950.0,110940.0,0.1558]
[1756843233294,0.27637736,110950.0,110940.0,0.1558]
[1756843233898,0.02093882,110940.0,110930.0,0.18930738]
[1756843234031,0.20403327,110940.0,110930.0,0.18930738]
[1756843234234,0.20319644,110940.0,110930.0,0.34506738]
[1756843234448,0.20319644,110940.0,110930.0,0.33601387]
[1756843234650,0.18029387,110930.0,110910.0,0.24380874]
[1756843234906,0.20123269,110930.0,110920.0,0.33603013]
[1756843235118,0.20322269,110930.0,110920.0,0.33603013]
[1756843235356,0.02292882,110930.0,110920.0,0.33807013]
[1756843235576,0.02574591,110930.0,110920.0,0.34100013]
[1756843235792,0.02375591,110930.0,110920.0,0.34100013]
[1756843235983,0.02574591,110930.0,110920.0,0.34100013]
[1756843236700,0.02375591,110930.0,110920.0,0.34100013]
[1756843237114,0.02574591,110930.0,110920.0,0.34100013]
[1756843237693,0.02574591,110930.0,110920.0,0.34500013]
[1756843238101,0.20603978,110930.0,110920.0,0.34500013]
[1756843238283,0.02093882,110930.0,110920.0,0.34900013]
[1756843238484,0.02375591,110930.0,110920.0,0.34900013]
[1756843238690,0.02574591,110930.0,110920.0,0.34900013]
[1756843239981,0.02375591,110930.0,110920.0,0.34900013]
[1756843242460,0.02375591,110930.0,110920.0,0.34876013]
[1756843243002,0.20404978,110930.0,110920.0,0.34876013]
[1756843243203,0.20123269,110930.0,110920.0,0.34876013]
[1756843243408,0.20322269,110930.0,110920.0,0.34876013]
[1756843244044,0.02093882,110930.0,110920.0,0.34876013]
[1756843244349,0.02375591,110930.0,110920.0,0.34876013]
[1756843245824,0.20404978,110930.0,110920.0,0.34876013]
[1756843246036,0.20123269,110930.0,110920.0,0.34876013]
[1756843246238,0.02093882,110930.0,110920.0,0.34876013]
[1756843246439,0.02375591,110930.0,110920.0,0.34876013]
[1756843246644,0.20603978,110930.0,110920.0,0.34876013]
[1756843246800,0.20322269,110930.0,110920.0,0.34876013]
[1756843247491,0.02093882,110930.0,110920.0,0.34876013]
[1756843247675,0.20404978,110930.0,110920.0,0.34876013]
[1756843247880,0.20123269,110930.0,110920.0,0.34876013]
[1756843248116,0.20123269,110930.0,110920.0,0.01297]
[1756843248117,0.20322269,110930.0,110920.0,0.01297]
[1756843248321,0.20322269,110930.0,110920.0,0.008]
[1756843248322,1.3018328,110930.0,110920.0,0.008]
[1756843248739,1.32894176,110930.0,110920.0,0.008]
[1756843248939,1.48438176,110930.0,110920.0,0.008]
[1756843249367,0.81989764,110930.0,110920.0,0.008]
[1756843249545,0.18032639,110910.0,110900.0,0.34804964]
[1756843249702,0.18314398,110910.0,110900.0,0.35012964]
[1756843250113,0.18513398,110910.0,110900.0,0.35012964]
[1756843250332,0.29317943,110920.0,110910.0,0.18032639]
[1756843250535,0.11285481,110920.0,110910.0,0.18565639]
[1756843250762,0.29598228,110920.0,110910.0,0.18612555]
[1756843250948,0.29316494,110920.0,110910.0,0.18612555]
[1756843251158,0.11285481,110920.0,110910.0,0.18612555]
[1756843251361,0.29598228,110920.0,110910.0,0.16119916]
[1756843251561,0.29316494,110920.0,110910.0,0.34152555]
[1756843252025,0.29316494,110920.0,110910.0,0.34252555]
[1756843252430,0.55641752,110930.0,110910.0,1.00700967]
[1756843252556,0.62122455,110930.0,110910.0,0.34027555]
[1756843252752,0.64216337,110930.0,110920.0,0.00325]
[1756843252999,0.64216337,110930.0,110920.0,0.18564013]
[1756843253418,0.64216337,110930.0,110920.0,0.00533]
[1756843253575,0.64414337,110930.0,110920.0,0.00533]
[1756843255340,0.64414337,110930.0,110920.0,0.00633]
[1756843255785,0.64216337,110930.0,110920.0,0.00633]
[1756843256424,0.64414337,110930.0,110920.0,0.00633]
[1756843257267,0.64216337,110930.0,110920.0,0.00633]
[1756843257467,0.64414337,110930.0,110920.0,0.00633]
[1756843260270,0.02093882,110930.0,110920.0,0.6140117]
[1756843260470,0.64016577,110930.0,110920.0,0.001]
[1756843260683,1.06472025,110930.0,110920.0,0.001]
[1756843260887,1.09183177,110930.0,110920.0,0.001]
[1756843261094,1.16493358,110930.0,110920.0,0.001]
[1756843261472,0.54124895,110920.0,110910.0,0.00046916]
[1756843261653,1.21832866,110920.0,110910.0,0.00046916]
[1756843261853,1.20085891,110920.0,110910.0,0.00046916]
[1756843262458,0.11285481,110920.0,110910.0,0.41631313]
[1756843262770,0.02093882,110920.0,110910.0,0.75175952]
[1756843263140,0.54740539,110930.0,110920.0,0.18031013]
[1756843263314,0.6602602,110930.0,110920.0,0.5908241]
[1756843263517,0.6602602,110930.0,110920.0,0.5961541]
[1756843263889,0.6602602,110930.0,110920.0,0.7515141]
[1756843264775,0.6602602,110930.0,110920.0,0.7525141]
[1756843265621,0.6602602,110930.0,110920.0,0.34200013]
[1756843265926,0.6602602,110930.0,110920.0,0.18664013]
[1756843266832,0.6622402,110930.0,110920.0,0.00633]
[1756843267029,0.6602602,110930.0,110920.0,0.00633]
[1756843267595,0.6622402,110930.0,110920.0,0.00633]
[1756843270120,0.6622402,110930.0,110920.0,0.18664013]
[1756843270438,0.6602602,110930.0,110920.0,0.18664013]
[1756843270678,0.6622402,110930.0,110920.0,0.00633]
[1756843270889,0.6622402,110930.0,110920.0,0.00308]
[1756843271090,0.6622402,110930.0,110920.0,0.00614]
[1756843273246,0.6622402,110930.0,110920.0,0.001]
[1756843276527,0.6622402,110930.0,110920.0,0.00612]
[1756843276733,0.48194633,110930.0,110920.0,0.18643013]
[1756843276883,0.02093882,110930.0,110920.0,0.61379077]
[1756843277492,0.02093882,110930.0,110920.0,0.18643013]
[1756843277823,0.02093882,110930.0,110920.0,0.76907077]
[1756843278260,0.02093882,110930.0,110920.0,0.34171013]
[1756843279379,0.02093882,110930.0,110920.0,0.76907077]
[1756843279829,0.02093882,110930.0,110920.0,0.61379077]
[1756843280037,0.02093882,110930.0,110920.0,0.76895077]
[1756843280242,0.20123269,110930.0,110920.0,0.76895077]
[1756843280682,0.02093882,110930.0,110920.0,0.34159013]
[1756843280805,0.02093882,110930.0,110920.0,0.76895077]
[1756843281763,0.02093882,110930.0,110920.0,0.34159013]
[1756843281973,0.02093882,110930.0,110920.0,0.76895077]
[1756843285524,0.02093882,110930.0,110920.0,1.16206015]
[1756843285749,0.20123269,110930.0,110920.0,0.75182514]
[1756843285998,0.20123269,110930.0,110920.0,0.34151013]
[1756843286447,0.20123269,110930.0,110920.0,0.75174514]
[1756843286663,0.02093882,110930.0,110920.0,0.75174514]
[1756843286848,0.02093882,110930.0,110920.0,0.34151013]
[1756843286988,0.20123269,110930.0,110920.0,0.75174514]
[1756843287724,0.20123269,110930.0,110920.0,0.18643013]
[1756843287993,0.20123269,110930.0,110920.0,0.75174514]
[1756843292197,0.02093882,110930.0,110920.0,0.75174514]
[1756843292743,0.02093882,110930.0,110920.0,1.16198015]
[1756843293154,0.02093882,110930.0,110920.0,0.34151013]
[1756843293354,0.02093882,110930.0,110920.0,0.75174514]
[1756843294275,0.02710599,110940.0,110930.0,0.18029387]
[1756843294498,0.18026137,110950.0,110940.0,0.18027762]
[1756843294688,0.29311618,110950.0,110940.0,1.15768764]
[1756843294859,0.11285481,110950.0,110940.0,0.75051263]
[1756843295225,0.11285481,110950.0,110940.0,1.16074764]
[1756843295455,0.11285481,110950.0,110940.0,1.15974764]
[1756843296055,0.11485481,110950.0,110940.0,1.15974764]
[1756843296257,0.29511618,110950.0,110940.0,0.74951263]
[1756843296507,0.29511618,110950.0,110940.0,0.59463263]
[1756843296702,0.29411618,110950.0,110940.0,0.74943263]
[1756843297067,0.29411618,110950.0,110940.0,0.18439762]
[1756843297277,0.11385481,110950.0,110940.0,1.15966764]
[1756843297474,0.001,110950.0,110940.0,1.15966764]
[1756843297884,0.21034302,110970.0,110960.0,0.18024513]
[1756843298165,0.27234488,110970.0,110960.0,0.75040014]
[1756843298327,0.6332837,110970.0,110960.0,0.75040014]
[1756843298953,0.6332837,110970.0,110960.0,0.75140014]
[1756843298954,0.64240075,110970.0,110960.0,0.75140014]
[1756843299157,0.64254147,110970.0,110960.0,0.75240014]
[1756843299360,0.46231258,110970.0,110960.0,0.75240014]
[1756843299767,0.64254147,110970.0,110960.0,1.16263515]
[1756843300008,0.36127954,110970.0,110960.0,0.34216513]
[1756843300190,0.36127954,110970.0,110960.0,1.16263515]
[1756843300406,0.54150843,110970.0,110960.0,0.75240014]
[1756843300754,0.36127954,110970.0,110960.0,0.75240014]
[1756843300958,0.36127954,110970.0,110960.0,1.16263515]
[1756843301749,0.36127954,110970.0,110960.0,1.00783515]
[1756843301956,0.36127954,110970.0,110960.0,1.16259515]
[1756843302413,0.02127954,110970.0,110960.0,1.16259515]
[1756843303187,0.02127954,110970.0,110960.0,1.00783515]
[1756843303594,0.02127954,110970.0,110960.0,1.16259515]
[1756843304228,0.02127954,110970.0,110960.0,0.18736513]
[1756843304431,0.02409561,110970.0,110960.0,0.75236014]
[1756843304631,0.02409561,110970.0,110960.0,1.56259515]
[1756843306236,0.00315679,110970.0,110960.0,1.56259515]
[1756843306440,0.00034072,110970.0,110960.0,1.56259515]
[1756843308154,0.00034072,110970.0,110960.0,2.03635016]
[1756843308365,0.00034072,110970.0,110960.0,1.88159016]
[1756843308516,0.00034072,110970.0,110960.0,1.62611515]
[1756843310844,0.00034072,110970.0,110960.0,1.47135515]
[1756843311018,0.00034072,110970.0,110960.0,1.62611515]
[1756843311392,0.00034072,110970.0,110960.0,1.62607515]
[1756843311594,0.00034072,110970.0,110960.0,1.47135515]
[1756843311803,0.00034072,110970.0,110960.0,1.62607515]
[1756843316214,0.00034072,110970.0,110960.0,2.03631016]
[1756843316408,0.00034072,110970.0,110960.0,2.12822615]
[1756843318133,0.00034072,110970.0,110960.0,2.46822615]
[1756843318336,0.00034072,110970.0,110960.0,2.49143615]
[1756843318563,0.00034072,110970.0,110960.0,2.34032789]
[1756843318784,0.00034072,110970.0,110960.0,2.53546495]
[1756843318992,0.00034072,110970.0,110960.0,2.53446495]
[1756843319367,0.00034072,110970.0,110960.0,2.38474495]
[1756843319573,0.00034072,110970.0,110960.0,2.12823804]
[1756843319948,0.00034072,110970.0,110960.0,2.24271804]
[1756843320164,0.00034072,110970.0,110960.0,2.39739804]
[1756843320374,0.00034072,110970.0,110960.0,2.39639804]
[1756843320570,0.00034072,110970.0,110960.0,2.40039804]
[1756843323486,0.00034072,110970.0,110960.0,2.37718804]
[1756843325433,0.00034072,110970.0,110960.0,2.22250804]
[1756843325645,0.00034072,110970.0,110960.0,1.96744898]
[1756843326062,0.00034072,110970.0,110960.0,1.69824898]
[1756843326661,0.00034072,110970.0,110960.0,1.54356898]
[1756843326841,0.00034072,110970.0,110960.0,1.69824898]
[1756843327396,0.00034072,110970.0,110960.0,1.54356898]
[1756843327575,0.00034072,110970.0,110960.0,1.69824898]
[1756843328428,0.00034072,110970.0,110960.0,2.10798804]
[1756843328808,0.00034072,110970.0,110960.0,1.95330804]
[1756843328941,0.00034072,110970.0,110960.0,2.10798804]
[1756843331908,0.00034072,110970.0,110960.0,2.37718804]
[1756843336583,1e-08,110970.0,110960.0,2.42718804]
[1756843336802,1e-08,110970.0,110960.0,2.47718804]
[1756843337706,1e-08,110970.0,110960.0,2.43677098]
[1756843338618,1e-08,110970.0,110960.0,2.38677098]
[1756843338844,1e-08,110970.0,110960.0,2.43677098]
[1756843339994,1e-08,110970.0,110960.0,2.38677098]
[1756843340220,1e-08,110970.0,110960.0,2.43677098]
[1756843340435,1e-08,110970.0,110960.0,2.43673098]
[1756843343072,1e-08,110970.0,110960.0,2.63525098]
[1756843343991,1e-08,110970.0,110960.0,3.04499004]
[1756843344229,0.0002,110980.0,110970.0,1.40944607]
[1756843344434,0.0002,110980.0,110970.0,1.92516206]
[1756843344616,0.0002,110980.0,110970.0,1.92821206]
[1756843344778,0.0002,110980.0,110970.0,2.33388322]
[1756843345389,0.0002,110990.0,110980.0,0.52021265]
[1756843345639,0.0002,110990.0,110980.0,1.58925676]
[1756843345850,0.0002,110990.0,110980.0,1.59131676]
[1756843346061,0.0002,110990.0,110980.0,1.99131676]
[1756843346271,0.0002,110990.0,110980.0,2.15591676]
[1756843346486,0.0002,110990.0,110980.0,2.31051676]
[1756843346952,0.0002,110990.0,110980.0,2.31551676]
[1756843348143,0.0002,110990.0,110980.0,2.31951676]
[1756843348364,0.0002,110990.0,110980.0,2.34659913]
[1756843348525,0.0002,110990.0,110980.0,2.29659913]
[1756843348728,0.0002,110990.0,110980.0,2.34659913]
[1756843350443,0.0002,110990.0,110980.0,2.19199913]
[1756843350647,0.0002,110990.0,110980.0,2.34659913]
[1756843351297,0.0002,110990.0,110980.0,2.29659913]
[1756843351509,0.0002,110990.0,110980.0,2.34659913]
[1756843351896,0.0002,110990.0,110980.0,2.19199913]
[1756843352113,0.0002,110990.0,110980.0,2.34655913]
[1756843355601,0.0002,110990.0,110980.0,2.29655913]
[1756843355855,0.0002,110990.0,110980.0,2.34655913]
[1756843359726,0.0002,111010.0,111000.0,0.18018018]
[1756843359935,0.00034064,111010.0,111000.0,1.21931601]
[1756843360151,0.00232064,111010.0,111000.0,1.2176983]
[1756843360352,0.00232064,111010.0,111000.0,1.6176983]
[1756843360572,0.00034064,111010.0,111000.0,1.6196983]
[1756843360771,0.00034064,111010.0,111000.0,2.06399927]
[1756843361209,0.00232064,111010.0,111000.0,2.06399927]
[1756843361448,0.00232064,111010.0,111000.0,2.06599927]
[1756843361991,0.00232064,111010.0,111000.0,2.06699927]
[1756843362613,0.00232064,111010.0,111000.0,2.06695927]
[1756843365391,0.00232064,111010.0,111000.0,1.09296115]
[1756843365606,0.00232064,111010.0,111000.0,1.24229115]
[1756843365866,0.00232064,111010.0,111000.0,1.65203021]
[1756843366298,0.00232064,111010.0,111000.0,1.49751021]
[1756843366504,0.00454064,111010.0,111000.0,1.65203021]
[1756843366727,0.00232064,111010.0,111000.0,1.65203021]
[1756843366942,0.00232064,111010.0,111000.0,1.65722021]
[1756843368486,0.00034064,111010.0,111000.0,1.65722021]
[1756843368676,0.00232064,111010.0,111000.0,1.65722021]
[1756843369015,0.00232064,111010.0,111000.0,1.69868197]
[1756843369593,0.00232064,111010.0,111000.0,2.10842103]
[1756843370293,0.00232064,111010.0,111000.0,1.69868197]
[1756843371747,0.00232064,111010.0,111000.0,1.54416197]
[1756843371887,0.00232064,111010.0,111000.0,1.69868197]
[1756843375859,0.00034064,111010.0,111000.0,1.69868197]
[1756843376306,0.00232064,111010.0,111000.0,1.69868197]
[1756843376894,0.00034064,111010.0,111000.0,1.69868197]
[1756843377398,0.00034064,111010.0,111000.0,2.10842103]
[1756843381656,0.00034064,111010.0,111000.0,2.56702215]
[1756843381876,0.00034064,111010.0,111000.0,2.57063245]
[1756843382239,0.00034064,111010.0,111000.0,2.00677937]
[1756843382452,0.00034064,111010.0,111000.0,2.16125937]
[1756843382613,0.00034064,111010.0,111000.0,2.57063245]
[1756843383020,0.00034064,111010.0,111000.0,2.41615245]
[1756843383230,0.00034064,111010.0,111000.0,2.57063245]
[1756843384266,0.00034064,111010.0,111000.0,2.41615245]
[1756843384480,0.00034064,111010.0,111000.0,2.57063245]
[1756843385113,0.00034064,111010.0,111000.0,2.65171771]
[1756843385749,0.00034064,111010.0,111000.0,2.49723771]
[1756843385961,0.00034064,111010.0,111000.0,2.65171771]
[1756843386188,0.00034064,111010.0,111000.0,2.76907245]
[1756843386875,0.00034064,111010.0,111000.0,1.95032629]
[1756843387096,0.00034064,111010.0,111000.0,2.76907245]
[1756843387759,0.00034064,111010.0,111000.0,2.69567771]
[1756843387986,0.00034064,111010.0,111000.0,1.62199847]
[1756843388207,0.00034064,111010.0,111000.0,2.85011771]
[1756843391591,0.00034064,111010.0,111000.0,2.69567771]
[1756843391804,0.00034064,111010.0,111000.0,2.85011771]
[1756843392575,0.00034064,111010.0,111000.0,2.80865595]
[1756843393871,0.00034064,111010.0,111000.0,1.58053671]
[1756843394079,0.00034064,111010.0,111000.0,2.80865595]
[1756843395342,0.00034064,111010.0,111000.0,2.65421595]
[1756843395539,0.00034064,111010.0,111000.0,2.80969595]
[1756843402611,0.00034064,111010.0,111000.0,2.65421595]
[1756843402779,0.00232064,111010.0,111000.0,2.18965287]
[1756843402991,0.00232064,111010.0,111000.0,1.35919453]
[1756843403203,0.41391372,111010.0,111000.0,0.25027048]
[1756843403404,0.41391372,111010.0,111000.0,0.24666018]
[1756843403633,0.41391372,111010.0,111000.0,0.40206018]
[1756843404805,0.41391372,111010.0,111000.0,0.24666018]
[1756843405246,0.41391372,111010.0,111000.0,0.40206018]
[1756843405680,0.00454064,111010.0,111000.0,0.40206018]